[Event "*** Titled Tuesday Blitz"]
[Site "Chess.com"]
[Date "2020.11.03"]
[Round "5"]
[White "elohunter1999"]
[Black "snowlord"]
[Result "1-0"]
[WhiteElo "2512"]
[BlackElo "2725"]
[TimeControl "180+1"]
[EndTime "10:59:34 PST"]
[Termination "elohunter1999 won by resignation"]

1. e4 {[%clk 0:03:00.9]} 1... c5 {[%clk 0:02:58.7]} 2. Nf3 {[%clk 0:03:00.6]}
2... d6 {[%clk 0:02:59.1]} 3. d4 {[%clk 0:03:00.6]} 3... cxd4 {[%clk 0:03:00]}
4. Nxd4 {[%clk 0:03:01.5]} 4... Nf6 {[%clk 0:03:00.7]} 5. Nc3 {[%clk 0:03:01.7]}
5... a6 {[%clk 0:03:01.1]} 6. Bg5 {[%clk 0:03:01.9]} 6... Nbd7 {[%clk
0:02:59.6]} 7. Bc4 {[%clk 0:03:00.5]} 7... Qb6 {[%clk 0:02:59.3]} 8. Bb3 {[%clk
0:03:00]} 8... e6 {[%clk 0:02:58.2]} 9. Qd2 {[%clk 0:02:58.6]} 9... Be7 {[%clk
0:02:58.3]} 10. O-O-O {[%clk 0:02:58.4]} 10... Nc5 {[%clk 0:02:58.1]} 11. Rhe1
{[%clk 0:02:58.5]} 11... h6 {[%clk 0:02:47.7]} 12. Bh4 {[%clk 0:02:57.3]} 12...
Qc7 {[%clk 0:02:21.9]} 13. Kb1 {[%clk 0:02:45]} 13... b5 {[%clk 0:02:09.7]} 14.
a3 {[%clk 0:01:52.9]} 14... Bb7 {[%clk 0:01:51.8]} 15. Bxf6 {[%clk 0:01:52.8]}
15... Bxf6 {[%clk 0:01:46]} 16. Ba2 {[%clk 0:01:52.6]} 16... O-O {[%clk
0:01:41.2]} 17. f4 {[%clk 0:01:52.7]} 17... Rac8 {[%clk 0:00:54.4]} 18. g4
{[%clk 0:01:52.5]} 18... e5 {[%clk 0:00:53.6]} 19. Nf5 {[%clk 0:01:45]} 19...
exf4 {[%clk 0:00:50.8]} 20. Nd5 {[%clk 0:00:40.7]} 20... Bxd5 {[%clk 0:00:49]}
21. Bxd5 {[%clk 0:00:41.6]} 21... Na4 {[%clk 0:00:49.3]} 22. c3 {[%clk
0:00:38.7]} 22... Rfd8 {[%clk 0:00:34]} 23. h4 {[%clk 0:00:37.3]} 23... Qc5
{[%clk 0:00:32.7]} 24. g5 {[%clk 0:00:31.9]} 24... Bxc3 {[%clk 0:00:32.3]} 25.
bxc3 {[%clk 0:00:23.7]} 25... Qxa3 {[%clk 0:00:32.7]} 26. Rc1 {[%clk 0:00:17.9]}
26... Nxc3+ {[%clk 0:00:32.8]} 27. Rxc3 {[%clk 0:00:18.2]} 27... Rxc3 {[%clk
0:00:33.6]} 28. Qd4 {[%clk 0:00:12.6]} 28... Rb3+ {[%clk 0:00:20.4]} 29. Bxb3
{[%clk 0:00:12.9]} 29... Qxb3+ {[%clk 0:00:21.3]} 30. Qb2 {[%clk 0:00:13.4]}
30... Qxb2+ {[%clk 0:00:12.5]} 31. Kxb2 {[%clk 0:00:14.3]} 31... hxg5 {[%clk
0:00:13.1]} 32. hxg5 {[%clk 0:00:14.7]} 32... d5 {[%clk 0:00:09.3]} 33. exd5
{[%clk 0:00:13.7]} 33... g6 {[%clk 0:00:10]} 34. Nh6+ {[%clk 0:00:13.2]} 34...
Kf8 {[%clk 0:00:09.8]} 35. Rf1 {[%clk 0:00:11]} 35... Rxd5 {[%clk 0:00:09.4]}
36. Rxf4 {[%clk 0:00:09]} 36... Rxg5 {[%clk 0:00:10.1]} 37. Rxf7+ {[%clk
0:00:08.8]} 37... Ke8 {[%clk 0:00:10.1]} 38. Ra7 {[%clk 0:00:08.8]} 38... Rg2+
{[%clk 0:00:06.3]} 39. Kc3 {[%clk 0:00:08.5]} 39... g5 {[%clk 0:00:07.2]} 40.
Rxa6 {[%clk 0:00:07]} 40... g4 {[%clk 0:00:07.7]} 41. Nf5 {[%clk 0:00:06.8]}
41... g3 {[%clk 0:00:08.2]} 42. Ra7 {[%clk 0:00:06.2]} 42... Rg1 {[%clk
0:00:07.2]} 43. Rg7 {[%clk 0:00:05.3]} 43... g2 {[%clk 0:00:06.5]} 44. Kb2
{[%clk 0:00:05.8]} 44... Rf1 {[%clk 0:00:05.9]} 45. Nd6+ {[%clk 0:00:05.8]}
45... Kd8 {[%clk 0:00:04.9]} 46. Rxg2 {[%clk 0:00:06.4]} 46... Kd7 {[%clk
0:00:05.6]} 47. Nxb5 {[%clk 0:00:06.2]} 47... Rf5 {[%clk 0:00:06.3]} 48. Nc3
{[%clk 0:00:06.3]} 48... Re5 {[%clk 0:00:05.7]} 49. Kb3 {[%clk 0:00:06.6]} 49...
Ke7 {[%clk 0:00:06]} 50. Kc4 {[%clk 0:00:06.8]} 50... Re6 {[%clk 0:00:06.9]} 51.
Nd5+ {[%clk 0:00:06.3]} 51... Kd6 {[%clk 0:00:07.5]} 52. Nc3 {[%clk 0:00:05]}
52... Rf6 {[%clk 0:00:06.8]} 53. Ne4+ {[%clk 0:00:04]} 1-0

[Event "*** Titled Tuesday Blitz"]
[Site "Chess.com"]
[Date "2020.11.03"]
[Round "5"]
[White "Angry_Twin"]
[Black "Vesper2018"]
[Result "1-0"]
[WhiteElo "2863"]
[BlackElo "2614"]
[TimeControl "180+1"]
[EndTime "10:59:35 PST"]
[Termination "Angry_Twin won on time"]

1. e4 {[%clk 0:03:00]} 1... c5 {[%clk 0:02:59.8]} 2. Nf3 {[%clk 0:02:55.8]} 2...
d6 {[%clk 0:02:59.8]} 3. Bb5+ {[%clk 0:02:45.8]} 3... Bd7 {[%clk 0:02:57.8]} 4.
Bxd7+ {[%clk 0:02:45.5]} 4... Qxd7 {[%clk 0:02:57.9]} 5. c4 {[%clk 0:02:46.4]}
5... Nf6 {[%clk 0:02:56.9]} 6. Nc3 {[%clk 0:02:46.3]} 6... Nc6 {[%clk
0:02:55.5]} 7. O-O {[%clk 0:02:46]} 7... g6 {[%clk 0:02:54.3]} 8. d4 {[%clk
0:02:42.5]} 8... cxd4 {[%clk 0:02:54.1]} 9. Nxd4 {[%clk 0:02:43.4]} 9... Bg7
{[%clk 0:02:54.8]} 10. Nde2 {[%clk 0:02:41.7]} 10... O-O {[%clk 0:02:53.4]} 11.
f3 {[%clk 0:02:41.8]} 11... Rac8 {[%clk 0:02:52.1]} 12. b3 {[%clk 0:02:41]}
12... e6 {[%clk 0:02:46]} 13. Be3 {[%clk 0:02:37.6]} 13... Rfd8 {[%clk
0:02:44.8]} 14. Bg5 {[%clk 0:02:33.6]} 14... h6 {[%clk 0:02:37.2]} 15. Bh4
{[%clk 0:02:33.4]} 15... g5 {[%clk 0:02:35]} 16. Bf2 {[%clk 0:02:03.6]} 16... d5
{[%clk 0:02:33]} 17. exd5 {[%clk 0:02:04.1]} 17... exd5 {[%clk 0:02:32.8]} 18.
c5 {[%clk 0:02:05]} 18... d4 {[%clk 0:02:24.8]} 19. Nb5 {[%clk 0:02:04.9]} 19...
d3 {[%clk 0:02:23.5]} 20. Ng3 {[%clk 0:02:04.9]} 20... Ne8 {[%clk 0:02:00.3]}
21. Ne4 {[%clk 0:01:55.5]} 21... Be5 {[%clk 0:01:43]} 22. Nbd6 {[%clk
0:01:26.8]} 22... Nxd6 {[%clk 0:01:40.2]} 23. cxd6 {[%clk 0:01:27.7]} 23... f5
{[%clk 0:01:09.9]} 24. Nc5 {[%clk 0:01:26.9]} 24... Qxd6 {[%clk 0:01:07.5]} 25.
Nxb7 {[%clk 0:01:26.7]} 25... Qd5 {[%clk 0:00:52.3]} 26. Nxd8 {[%clk 0:01:26.3]}
26... Rxd8 {[%clk 0:00:52.5]} 27. Rc1 {[%clk 0:01:26.7]} 27... d2 {[%clk
0:00:39.9]} 28. Rc4 {[%clk 0:00:59.7]} 28... a5 {[%clk 0:00:39.5]} 29. a3 {[%clk
0:00:58.6]} 29... Qd6 {[%clk 0:00:36.7]} 30. g3 {[%clk 0:00:53.6]} 30... Nd4
{[%clk 0:00:28]} 31. Kg2 {[%clk 0:00:48.4]} 31... Nb5 {[%clk 0:00:25.7]} 32. Qc2
{[%clk 0:00:18.3]} 32... d1=Q {[%clk 0:00:20.1]} 33. Rxd1 {[%clk 0:00:18.5]}
33... Qxd1 {[%clk 0:00:20.7]} 34. Qxf5 {[%clk 0:00:19.4]} 34... Nd6 {[%clk
0:00:15.1]} 35. Qg6+ {[%clk 0:00:16.3]} 35... Bg7 {[%clk 0:00:14.6]} 36. Rc7
{[%clk 0:00:15.2]} 36... Ne8 {[%clk 0:00:12.7]} 37. Re7 {[%clk 0:00:14.2]} 37...
Qxb3 {[%clk 0:00:08.6]} 38. Rxe8+ {[%clk 0:00:13.7]} 38... Rxe8 {[%clk
0:00:09.1]} 39. Qxe8+ {[%clk 0:00:14.6]} 39... Kh7 {[%clk 0:00:09.5]} 40. Qe4+
{[%clk 0:00:15.2]} 40... Kg8 {[%clk 0:00:09.7]} 41. a4 {[%clk 0:00:15.9]} 41...
Qb4 {[%clk 0:00:06.8]} 42. Qe8+ {[%clk 0:00:13.6]} 42... Kh7 {[%clk 0:00:06.8]}
43. Qc6 {[%clk 0:00:14.5]} 43... Qb2 {[%clk 0:00:05.7]} 44. Qe4+ {[%clk
0:00:13.9]} 44... Kg8 {[%clk 0:00:05.5]} 45. Qa8+ {[%clk 0:00:14.5]} 45... Kh7
{[%clk 0:00:05.6]} 46. Qxa5 {[%clk 0:00:14.4]} 46... Bd4 {[%clk 0:00:05.3]} 47.
Qc7+ {[%clk 0:00:15]} 47... Bg7 {[%clk 0:00:02.8]} 48. Qc4 {[%clk 0:00:15.1]}
48... Qa3 {[%clk 0:00:02.3]} 49. Qe4+ {[%clk 0:00:14.8]} 49... Kg8 {[%clk
0:00:02.2]} 50. Qd5+ {[%clk 0:00:15.1]} 50... Kh7 {[%clk 0:00:02.8]} 51. a5
{[%clk 0:00:16]} 51... Qa4 {[%clk 0:00:02.2]} 52. Qf5+ {[%clk 0:00:15.8]} 52...
Kh8 {[%clk 0:00:02.1]} 53. g4 {[%clk 0:00:16.2]} 53... Qa2 {[%clk 0:00:01.4]}
54. Qc8+ {[%clk 0:00:16.2]} 54... Kh7 {[%clk 0:00:01.3]} 55. a6 {[%clk
0:00:17.1]} 1-0

[Event "*** Titled Tuesday Blitz"]
[Site "Chess.com"]
[Date "2020.11.03"]
[Round "5"]
[White "aleksey1203borisovi4"]
[Black "Aygehovit1992"]
[Result "0-1"]
[WhiteElo "2466"]
[BlackElo "2632"]
[TimeControl "180+1"]
[EndTime "10:59:35 PST"]
[Termination "Aygehovit1992 won by resignation"]

1. g3 {[%clk 0:03:00.9]} 1... d6 {[%clk 0:02:11.3]} 2. Bg2 {[%clk 0:03:01.8]}
2... g6 {[%clk 0:02:08.5]} 3. d3 {[%clk 0:03:00.1]} 3... Bg7 {[%clk 0:02:09]} 4.
Nc3 {[%clk 0:03:00.6]} 4... e5 {[%clk 0:02:08.6]} 5. Nf3 {[%clk 0:02:56.3]} 5...
Nc6 {[%clk 0:02:08.8]} 6. O-O {[%clk 0:02:56.6]} 6... f5 {[%clk 0:02:08.8]} 7.
Bg5 {[%clk 0:02:55.3]} 7... Nf6 {[%clk 0:02:06.9]} 8. a3 {[%clk 0:02:36.7]} 8...
h6 {[%clk 0:02:04.2]} 9. Bd2 {[%clk 0:02:29]} 9... O-O {[%clk 0:02:03.6]} 10. b4
{[%clk 0:02:24.6]} 10... g5 {[%clk 0:02:00.1]} 11. b5 {[%clk 0:02:05.3]} 11...
Ne7 {[%clk 0:01:58.7]} 12. Qb1 {[%clk 0:02:06.2]} 12... Be6 {[%clk 0:01:51.4]}
13. Qb4 {[%clk 0:02:05.2]} 13... f4 {[%clk 0:01:48.2]} 14. Ne4 {[%clk
0:01:57.4]} 14... Nf5 {[%clk 0:01:36]} 15. Nxf6+ {[%clk 0:01:51.2]} 15... Qxf6
{[%clk 0:01:36.9]} 16. Bc3 {[%clk 0:01:52.1]} 16... Qg6 {[%clk 0:01:19.8]} 17.
Bb2 {[%clk 0:01:51.5]} 17... Rae8 {[%clk 0:01:14.7]} 18. Nd2 {[%clk 0:01:43.6]}
18... d5 {[%clk 0:01:12.3]} 19. Qc5 {[%clk 0:01:38.1]} 19... Qf7 {[%clk
0:00:52]} 20. a4 {[%clk 0:01:33.8]} 20... b6 {[%clk 0:00:51.7]} 21. Qc6 {[%clk
0:01:28.7]} 21... Nd4 {[%clk 0:00:49.8]} 22. Bxd4 {[%clk 0:01:23.4]} 22... exd4
{[%clk 0:00:50.7]} 23. a5 {[%clk 0:01:13.6]} 23... Rd8 {[%clk 0:00:44]} 24. axb6
{[%clk 0:01:09.6]} 24... cxb6 {[%clk 0:00:44.9]} 25. Rxa7 {[%clk 0:01:02.6]}
25... Qxa7 {[%clk 0:00:40.4]} 26. Qxe6+ {[%clk 0:01:02.6]} 26... Kh8 {[%clk
0:00:38.1]} 27. Bxd5 {[%clk 0:01:01.5]} 27... Rf6 {[%clk 0:00:27.6]} 28. Qe4
{[%clk 0:01:01.5]} 28... Qd7 {[%clk 0:00:20]} 29. Bc6 {[%clk 0:00:56.6]} 29...
Qh3 {[%clk 0:00:20.1]} 30. Qe7 {[%clk 0:00:51.3]} 30... Rdf8 {[%clk 0:00:19.3]}
31. Ne4 {[%clk 0:00:45.8]} 31... R6f7 {[%clk 0:00:18.8]} 32. Qd6 {[%clk
0:00:41.6]} 32... g4 {[%clk 0:00:18.6]} 33. Bd7 {[%clk 0:00:36.8]} 33... Rd8
{[%clk 0:00:15]} 34. Bxg4 {[%clk 0:00:31.2]} 34... Rxd6 {[%clk 0:00:14.6]} 35.
Bxh3 {[%clk 0:00:28.1]} 35... Rd8 {[%clk 0:00:14.3]} 36. Be6 {[%clk 0:00:21.2]}
36... Rc7 {[%clk 0:00:13.8]} 37. Bb3 {[%clk 0:00:13.3]} 37... Be5 {[%clk
0:00:11.7]} 38. Kg2 {[%clk 0:00:13.1]} 38... Kg7 {[%clk 0:00:11.4]} 39. Rh1
{[%clk 0:00:12.5]} 39... Rf8 {[%clk 0:00:11]} 40. g4 {[%clk 0:00:12.7]} 40...
Ra8 {[%clk 0:00:07.4]} 41. Kf3 {[%clk 0:00:12.6]} 41... Rca7 {[%clk 0:00:06.8]}
42. h4 {[%clk 0:00:13.2]} 42... Ra1 {[%clk 0:00:06.8]} 43. Rh2 {[%clk
0:00:11.9]} 43... Rg1 {[%clk 0:00:06.1]} 44. g5 {[%clk 0:00:11.5]} 44... h5
{[%clk 0:00:06.5]} 45. Rg2 {[%clk 0:00:09.6]} 45... Rh1 {[%clk 0:00:05.6]} 46.
Nd2 {[%clk 0:00:08.3]} 46... Re8 {[%clk 0:00:04.2]} 47. Nc4 {[%clk 0:00:09.2]}
47... Bc7 {[%clk 0:00:03.5]} 48. g6 {[%clk 0:00:07.4]} 48... Rh3+ {[%clk
0:00:03]} 49. Rg3 {[%clk 0:00:06]} 49... fxg3 {[%clk 0:00:03.9]} 50. fxg3 {[%clk
0:00:06.2]} 50... Rxg3+ {[%clk 0:00:04.3]} 51. Kf2 {[%clk 0:00:06.3]} 51... Rxg6
{[%clk 0:00:05.2]} 0-1

[Event "*** Titled Tuesday Blitz"]
[Site "Chess.com"]
[Date "2020.11.03"]
[Round "5"]
[White "Evgeny81"]
[Black "rynos0411"]
[Result "1-0"]
[WhiteElo "2723"]
[BlackElo "2487"]
[TimeControl "180+1"]
[EndTime "10:59:38 PST"]
[Termination "Evgeny81 won by resignation"]

1. Nf3 {[%clk 0:03:00.9]} 1... Nf6 {[%clk 0:02:55.8]} 2. c4 {[%clk 0:03:00.6]}
2... e6 {[%clk 0:02:54.5]} 3. g3 {[%clk 0:03:00.5]} 3... d5 {[%clk 0:02:54.4]}
4. Bg2 {[%clk 0:03:00.9]} 4... Be7 {[%clk 0:02:53.8]} 5. O-O {[%clk 0:03:00.3]}
5... O-O {[%clk 0:02:54.1]} 6. d4 {[%clk 0:03:00.6]} 6... c6 {[%clk 0:02:52.8]}
7. b3 {[%clk 0:02:57.8]} 7... Nbd7 {[%clk 0:02:52.2]} 8. Bb2 {[%clk 0:02:58.1]}
8... b6 {[%clk 0:02:52.4]} 9. Nc3 {[%clk 0:02:58.5]} 9... Bb7 {[%clk 0:02:52.6]}
10. Nd2 {[%clk 0:02:58.6]} 10... Rc8 {[%clk 0:02:49.5]} 11. e4 {[%clk
0:02:58.8]} 11... dxe4 {[%clk 0:02:49]} 12. Ndxe4 {[%clk 0:02:58.8]} 12... Nxe4
{[%clk 0:02:49.4]} 13. Nxe4 {[%clk 0:02:53.9]} 13... Nf6 {[%clk 0:02:50.3]} 14.
Qc2 {[%clk 0:02:47.6]} 14... Qc7 {[%clk 0:02:45.1]} 15. Nxf6+ {[%clk 0:02:39.8]}
15... Bxf6 {[%clk 0:02:46]} 16. c5 {[%clk 0:02:40.4]} 16... Rfd8 {[%clk
0:02:31.5]} 17. Rfd1 {[%clk 0:02:40.2]} 17... Rd7 {[%clk 0:02:23.1]} 18. Rac1
{[%clk 0:02:28.2]} 18... Rcd8 {[%clk 0:02:04.6]} 19. cxb6 {[%clk 0:02:18.4]}
19... Qxb6 {[%clk 0:01:58.6]} 20. Qc5 {[%clk 0:01:46.9]} 20... Bxd4 {[%clk
0:00:30.4]} 21. Rxd4 {[%clk 0:01:40.1]} 21... Qxc5 {[%clk 0:00:17]} 22. Rxc5
{[%clk 0:01:39.2]} 22... Rxd4 {[%clk 0:00:16.8]} 23. Bxd4 {[%clk 0:01:39.9]}
23... Rxd4 {[%clk 0:00:16.7]} 24. Bxc6 {[%clk 0:01:39.7]} 24... Bxc6 {[%clk
0:00:16.7]} 25. Rxc6 {[%clk 0:01:39.9]} 25... g6 {[%clk 0:00:16]} 26. Ra6 {[%clk
0:01:34.6]} 26... Rd7 {[%clk 0:00:15.5]} 27. h4 {[%clk 0:01:31.6]} 27... h5
{[%clk 0:00:14.4]} 28. Kf1 {[%clk 0:01:31.2]} 28... Kg7 {[%clk 0:00:14.6]} 29.
Ke2 {[%clk 0:01:31.4]} 29... Kf6 {[%clk 0:00:14.9]} 30. Ke3 {[%clk 0:01:29.1]}
30... Ke5 {[%clk 0:00:15.1]} 31. Ra4 {[%clk 0:01:23.9]} 31... Rc7 {[%clk
0:00:12.4]} 32. Kd3 {[%clk 0:01:18.1]} 32... Kd5 {[%clk 0:00:10.6]} 33. Rd4+
{[%clk 0:01:14.7]} 33... Ke5 {[%clk 0:00:09.6]} 34. Ra4 {[%clk 0:01:08.1]} 34...
Kd5 {[%clk 0:00:08.4]} 35. Ra5+ {[%clk 0:01:08.3]} 35... Kd6 {[%clk 0:00:08.5]}
36. b4 {[%clk 0:01:05.4]} 36... Rb7 {[%clk 0:00:06.2]} 37. a3 {[%clk 0:00:56.6]}
37... Rc7 {[%clk 0:00:04.8]} 38. Kd4 {[%clk 0:00:55.8]} 38... f6 {[%clk
0:00:04.4]} 39. Ra6+ {[%clk 0:00:54.2]} 39... Ke7 {[%clk 0:00:04.6]} 40. a4
{[%clk 0:00:51]} 40... Rb7 {[%clk 0:00:02.6]} 41. Kc5 {[%clk 0:00:48.4]} 41...
g5 {[%clk 0:00:02.3]} 42. b5 {[%clk 0:00:43.7]} 42... Kd7 {[%clk 0:00:02.2]} 43.
Rd6+ {[%clk 0:00:32.7]} 43... Ke7 {[%clk 0:00:02.1]} 44. Rd2 {[%clk 0:00:32.8]}
44... Rc7+ {[%clk 0:00:01.9]} 45. Kb4 {[%clk 0:00:32.3]} 45... gxh4 {[%clk
0:00:02]} 46. gxh4 {[%clk 0:00:32]} 46... e5 {[%clk 0:00:02.3]} 47. a5 {[%clk
0:00:27.9]} 47... Ke6 {[%clk 0:00:02.6]} 48. b6 {[%clk 0:00:28]} 48... axb6
{[%clk 0:00:03]} 49. axb6 {[%clk 0:00:28.9]} 49... Rb7 {[%clk 0:00:02.2]} 50.
Kc5 {[%clk 0:00:28.7]} 50... Kf5 {[%clk 0:00:02.6]} 51. Kc6 {[%clk 0:00:22.8]}
51... Rb8 {[%clk 0:00:02]} 52. Kc7 {[%clk 0:00:22.2]} 52... Rxb6 {[%clk
0:00:01.8]} 53. Kxb6 {[%clk 0:00:22.2]} 53... Kg4 {[%clk 0:00:02.7]} 54. Rd6
{[%clk 0:00:22]} 54... Kxh4 {[%clk 0:00:03.6]} 55. Rxf6 {[%clk 0:00:22]} 55...
Kg5 {[%clk 0:00:04.2]} 56. Rf8 {[%clk 0:00:18.5]} 56... h4 {[%clk 0:00:04]} 57.
Kc5 {[%clk 0:00:18.9]} 57... Kg4 {[%clk 0:00:04.1]} 58. Kd5 {[%clk 0:00:19]}
58... h3 {[%clk 0:00:04.5]} 59. Kxe5 {[%clk 0:00:19.2]} 59... h2 {[%clk
0:00:04]} 60. Rh8 {[%clk 0:00:19.4]} 1-0

[Event "*** Titled Tuesday Blitz"]
[Site "Chess.com"]
[Date "2020.11.03"]
[Round "5"]
[White "Bigfish1995"]
[Black "kirillshevchenko"]
[Result "1-0"]
[WhiteElo "3019"]
[BlackElo "2875"]
[TimeControl "180+1"]
[EndTime "10:59:40 PST"]
[Termination "Bigfish1995 won by resignation"]

1. e4 {[%clk 0:02:22.8]} 1... c5 {[%clk 0:02:59.6]} 2. c3 {[%clk 0:02:21]} 2...
Nf6 {[%clk 0:02:55.6]} 3. e5 {[%clk 0:02:19.1]} 3... Nd5 {[%clk 0:02:55.7]} 4.
d4 {[%clk 0:02:18.7]} 4... cxd4 {[%clk 0:02:55]} 5. Qxd4 {[%clk 0:02:18.8]} 5...
e6 {[%clk 0:02:54]} 6. Nf3 {[%clk 0:02:15.9]} 6... d6 {[%clk 0:02:40.6]} 7. Bb5+
{[%clk 0:02:08.1]} 7... Bd7 {[%clk 0:02:32.2]} 8. Bxd7+ {[%clk 0:02:07.7]} 8...
Qxd7 {[%clk 0:02:32.1]} 9. O-O {[%clk 0:02:00.5]} 9... Nc6 {[%clk 0:02:31.1]}
10. Qe4 {[%clk 0:02:00.6]} 10... dxe5 {[%clk 0:02:07.7]} 11. Nxe5 {[%clk
0:02:00.6]} 11... Nxe5 {[%clk 0:02:07.7]} 12. Qxe5 {[%clk 0:02:00.7]} 12... Qc7
{[%clk 0:02:08.3]} 13. Qxc7 {[%clk 0:01:42.3]} 13... Nxc7 {[%clk 0:02:07.6]} 14.
Nd2 {[%clk 0:01:43.2]} 14... O-O-O {[%clk 0:02:03.8]} 15. Nf3 {[%clk 0:01:38.3]}
15... Bd6 {[%clk 0:02:00]} 16. Ng5 {[%clk 0:01:32.8]} 16... Rd7 {[%clk
0:01:58.2]} 17. Ne4 {[%clk 0:01:29.4]} 17... Rhd8 {[%clk 0:01:54.2]} 18. Be3
{[%clk 0:01:16.3]} 18... b6 {[%clk 0:01:38.7]} 19. Nxd6+ {[%clk 0:01:12.5]}
19... Rxd6 {[%clk 0:01:38.2]} 20. c4 {[%clk 0:01:13.2]} 20... Rd3 {[%clk
0:01:31.3]} 21. Rfc1 {[%clk 0:01:10.5]} 21... Kb7 {[%clk 0:01:30.4]} 22. Kf1
{[%clk 0:01:01]} 22... e5 {[%clk 0:01:30.5]} 23. g4 {[%clk 0:00:34.5]} 23... Ne6
{[%clk 0:01:28]} 24. Kg2 {[%clk 0:00:34.6]} 24... f6 {[%clk 0:01:03.6]} 25. h4
{[%clk 0:00:32.5]} 25... g6 {[%clk 0:01:02.1]} 26. Re1 {[%clk 0:00:24]} 26... f5
{[%clk 0:00:57]} 27. f3 {[%clk 0:00:19.4]} 27... h5 {[%clk 0:00:44.8]} 28. g5
{[%clk 0:00:18.6]} 28... Kc6 {[%clk 0:00:32.9]} 29. Rac1 {[%clk 0:00:18.3]}
29... a5 {[%clk 0:00:32]} 30. b3 {[%clk 0:00:18.1]} 30... R8d6 {[%clk
0:00:29.2]} 31. Bf2 {[%clk 0:00:14.9]} 31... Nf4+ {[%clk 0:00:28.8]} 32. Kg3
{[%clk 0:00:15.3]} 32... e4 {[%clk 0:00:24.7]} 33. Be3 {[%clk 0:00:11.7]} 33...
Ne6 {[%clk 0:00:24.8]} 34. f4 {[%clk 0:00:11.3]} 34... Nd4 {[%clk 0:00:23.7]}
35. Kf2 {[%clk 0:00:10.4]} 35... Nf3 {[%clk 0:00:23.6]} 36. c5 {[%clk
0:00:09.9]} 36... bxc5 {[%clk 0:00:21.7]} 37. Rxc5+ {[%clk 0:00:09.9]} 37... Kd7
{[%clk 0:00:20.6]} 38. Rec1 {[%clk 0:00:10.4]} 38... a4 {[%clk 0:00:18.4]} 39.
b4 {[%clk 0:00:07.2]} 39... Ra3 {[%clk 0:00:16.9]} 40. R5c2 {[%clk 0:00:06.1]}
40... Rdd3 {[%clk 0:00:16.8]} 41. Bc5 {[%clk 0:00:06.2]} 41... Nxh4 {[%clk
0:00:15.4]} 42. b5 {[%clk 0:00:06.2]} 42... Rf3+ {[%clk 0:00:14.6]} 43. Ke1
{[%clk 0:00:06.6]} 43... Rad3 {[%clk 0:00:14.1]} 44. b6 {[%clk 0:00:07.1]} 44...
Rh3 {[%clk 0:00:07.5]} 45. b7 {[%clk 0:00:07.1]} 45... Rh1+ {[%clk 0:00:07.4]}
46. Ke2 {[%clk 0:00:06.7]} 46... Rh2+ {[%clk 0:00:06.5]} 47. Bf2 {[%clk
0:00:04.1]} 47... Rf3 {[%clk 0:00:05.9]} 48. Rd2+ {[%clk 0:00:03.5]} 48... Ke6
{[%clk 0:00:04.9]} 49. Rc6+ {[%clk 0:00:03.6]} 49... Ke7 {[%clk 0:00:05.3]} 50.
Kd1 {[%clk 0:00:03.6]} 50... Rfxf2 {[%clk 0:00:01.6]} 51. Rxf2 {[%clk 0:00:04]}
51... Rxf2 {[%clk 0:00:02]} 52. b8=Q {[%clk 0:00:04.6]} 1-0

[Event "*** Titled Tuesday Blitz"]
[Site "Chess.com"]
[Date "2020.11.03"]
[Round "5"]
[White "suyu28"]
[Black "Guenplen"]
[Result "1-0"]
[WhiteElo "2655"]
[BlackElo "2879"]
[TimeControl "180+1"]
[EndTime "10:59:41 PST"]
[Termination "suyu28 won by resignation"]

1. e4 {[%clk 0:03:00.9]} 1... c5 {[%clk 0:03:00]} 2. Nf3 {[%clk 0:03:00.7]} 2...
e6 {[%clk 0:03:00.4]} 3. d4 {[%clk 0:03:00.9]} 3... cxd4 {[%clk 0:03:01.3]} 4.
Nxd4 {[%clk 0:03:01.3]} 4... Nf6 {[%clk 0:03:01.9]} 5. Bd3 {[%clk 0:03:00.4]}
5... Nc6 {[%clk 0:03:01.4]} 6. Nxc6 {[%clk 0:02:59.9]} 6... bxc6 {[%clk
0:03:02.3]} 7. O-O {[%clk 0:02:59.1]} 7... d5 {[%clk 0:03:02.8]} 8. Nc3 {[%clk
0:02:59.2]} 8... Be7 {[%clk 0:03:02.5]} 9. Re1 {[%clk 0:02:58]} 9... O-O {[%clk
0:03:01.1]} 10. e5 {[%clk 0:02:29.9]} 10... Nd7 {[%clk 0:03:00.8]} 11. Bf4
{[%clk 0:02:29.9]} 11... Nc5 {[%clk 0:02:24.5]} 12. Bf1 {[%clk 0:02:27.1]} 12...
Bg5 {[%clk 0:02:19.5]} 13. Bg3 {[%clk 0:02:25.7]} 13... a5 {[%clk 0:02:19.1]}
14. Qg4 {[%clk 0:02:19.2]} 14... g6 {[%clk 0:02:14.2]} 15. f4 {[%clk 0:02:15.9]}
15... Be7 {[%clk 0:02:09.7]} 16. Kh1 {[%clk 0:02:13.3]} 16... Rb8 {[%clk
0:02:08.5]} 17. b3 {[%clk 0:02:12.9]} 17... Ba6 {[%clk 0:02:06.2]} 18. Bxa6
{[%clk 0:02:09.6]} 18... Nxa6 {[%clk 0:02:07.1]} 19. Rad1 {[%clk 0:02:04.7]}
19... h5 {[%clk 0:01:42.9]} 20. Qe2 {[%clk 0:02:04.3]} 20... Nc5 {[%clk
0:01:39.2]} 21. Bf2 {[%clk 0:02:03]} 21... Qc8 {[%clk 0:01:34.4]} 22. Rf1 {[%clk
0:01:44]} 22... Qa6 {[%clk 0:01:26.6]} 23. Qf3 {[%clk 0:01:44.1]} 23... a4
{[%clk 0:01:24.7]} 24. Bxc5 {[%clk 0:01:41.7]} 24... Bxc5 {[%clk 0:01:25.6]} 25.
Nxa4 {[%clk 0:01:42.1]} 25... Be7 {[%clk 0:01:25.8]} 26. Qd3 {[%clk 0:01:38.7]}
26... Qxd3 {[%clk 0:01:19.6]} 27. cxd3 {[%clk 0:01:38.7]} 27... Ra8 {[%clk
0:01:20.2]} 28. Rc1 {[%clk 0:01:39]} 28... c5 {[%clk 0:01:19.1]} 29. Rf2 {[%clk
0:01:38.3]} 29... Ra5 {[%clk 0:01:18.6]} 30. Rfc2 {[%clk 0:01:33.6]} 30... Rfa8
{[%clk 0:01:10.4]} 31. Kg1 {[%clk 0:01:33.5]} 31... Rb5 {[%clk 0:00:59.2]} 32.
Kf2 {[%clk 0:01:28.2]} 32... h4 {[%clk 0:00:56.8]} 33. Kf3 {[%clk 0:01:24.7]}
33... g5 {[%clk 0:00:54]} 34. fxg5 {[%clk 0:01:19.2]} 34... Rb4 {[%clk 0:00:48]}
35. g3 {[%clk 0:00:57.5]} 35... Kg7 {[%clk 0:00:41.1]} 36. gxh4 {[%clk
0:00:50.6]} 36... Rxh4 {[%clk 0:00:39.4]} 37. Rg1 {[%clk 0:00:51.3]} 37... c4
{[%clk 0:00:28.5]} 38. dxc4 {[%clk 0:00:47.9]} 38... dxc4 {[%clk 0:00:28.7]} 39.
Rg4 {[%clk 0:00:47.6]} 39... Rh3+ {[%clk 0:00:20.2]} 40. Rg3 {[%clk 0:00:47.7]}
40... Rxg3+ {[%clk 0:00:20.5]} 41. hxg3 {[%clk 0:00:47.8]} 41... cxb3 {[%clk
0:00:21.4]} 42. axb3 {[%clk 0:00:48.4]} 42... Rb8 {[%clk 0:00:21.9]} 43. Rb2
{[%clk 0:00:46.9]} 43... Rb5 {[%clk 0:00:14.6]} 44. Nc3 {[%clk 0:00:40.5]} 44...
Rxe5 {[%clk 0:00:13.7]} 45. Ne4 {[%clk 0:00:39]} 45... Bxg5 {[%clk 0:00:10.7]}
46. b4 {[%clk 0:00:37]} 46... Rb5 {[%clk 0:00:09.4]} 47. Nxg5 {[%clk 0:00:36.2]}
47... Rxg5 {[%clk 0:00:09.2]} 48. b5 {[%clk 0:00:36.7]} 48... Kf6 {[%clk
0:00:09.2]} 49. b6 {[%clk 0:00:35.9]} 49... Rg8 {[%clk 0:00:09.4]} 50. b7 {[%clk
0:00:34.6]} 50... Rb8 {[%clk 0:00:09.4]} 51. Ke4 {[%clk 0:00:35.1]} 51... Ke7
{[%clk 0:00:09.4]} 52. g4 {[%clk 0:00:34.7]} 52... Kd6 {[%clk 0:00:07.5]} 53. g5
{[%clk 0:00:32.7]} 53... Kc6 {[%clk 0:00:05]} 54. Ke5 {[%clk 0:00:33]} 54...
Rxb7 {[%clk 0:00:05.5]} 55. Rxb7 {[%clk 0:00:28.3]} 55... Kxb7 {[%clk
0:00:06.4]} 56. Kf6 {[%clk 0:00:29]} 56... Kc6 {[%clk 0:00:04.5]} 57. Kxf7
{[%clk 0:00:29.5]} 57... e5 {[%clk 0:00:05]} 58. g6 {[%clk 0:00:30]} 58... e4
{[%clk 0:00:05.9]} 59. g7 {[%clk 0:00:30.6]} 59... e3 {[%clk 0:00:04.8]} 60.
g8=Q {[%clk 0:00:31.2]} 60... Kd5 {[%clk 0:00:05.7]} 61. Qg1 {[%clk 0:00:31.7]}
61... Ke4 {[%clk 0:00:05.4]} 62. Qe1 {[%clk 0:00:32.6]} 1-0